fUST/lending_fUST_20240521
["ID","MTS","AMOUNT","RATE_DAILY","PERIOD"]
[327616217,1716253841078,-154.9690062,0.00020794,2]
[327616220,1716253841088,-327.92793333,0.00020794,2]
[327616222,1716253841097,-182.71547911,0.00020801,2]
[327616224,1716253841106,-2000.0,0.00020812,2]
[327616225,1716253841115,-865.47,0.00020901,3]
[327616227,1716253841124,-359.98066622,0.00020908,2]
[327616229,1716253841134,-236.44820243,0.00020908,2]
[327616231,1716253841143,-186.83038505,0.00020908,2]
[327616233,1716253841153,-158.45914912,0.00020908,2]
[327616235,1716253841164,-328.22139918,0.00020908,2]
[327616237,1716253841174,-274.24725433,0.00020909,2]
[327616239,1716253841187,-237.32273365,0.00020909,7]
[327616399,1716253844186,-6562.47036977,0.00020909,7]
[327616400,1716253844195,-400.0,0.0002091,2]
[327616401,1716253844206,-15982.57636638,0.0002091,2]
[327616402,1716253844216,-500.0,0.0002091,2]
[327616404,1716253844226,-402.88198106,0.0002091,2]
[327616406,1716253844236,-632.2695869,0.0002091,2]
[327616408,1716253844245,-500.0,0.0002091,2]
[327616409,1716253844255,-233.15873,0.0002091,2]
[327616411,1716253844264,-500.0,0.0002091,2]
[327616413,1716253844273,-500.0,0.0002091,2]
[327616415,1716253844283,-500.0,0.0002091,2]
[327616417,1716253844292,-500.0,0.0002091,2]
[327616419,1716253844301,-440.89862301,0.0002091,2]
[327616420,1716253844311,-355.69214082,0.0002091,2]
[327616421,1716253844320,-500.0,0.0002091,2]
[327616422,1716253844330,-500.0,0.0002091,2]
[327616423,1716253844339,-153.4795369,0.0002091,2]
[327616424,1716253844349,-409.58100217,0.0002091,2]
[327616425,1716253844358,-14546.97213349,0.00020911,2]
[327620323,1716253922182,2195.14473013,0.0002651,120]
[327620331,1716254380227,-487.76962202,9.999e-05,2]
[327620332,1716254456939,942.77170322,0.00015,2]
[327620334,1716254462748,550.79161917,9.999e-05,2]
[327620336,1716254623827,266.4778848,0.00015695,2]
[327620337,1716254721856,3977.95327634,0.00015695,2]
[327620338,1716254735861,3686.53962227,0.00015695,2]
[327620343,1716254886527,24900.0,0.00015432,2]
[327620344,1716254904490,942.77170322,0.00015,2]
[327620345,1716254908354,550.79161917,9.999e-05,2]
[327620393,1716255004047,487.76962202,9.999e-05,2]
[327620454,1716255033316,-7417.28784165,0.00016174,2]
[327620457,1716255033328,-2144.9916358,0.00016174,2]
[327620459,1716255033337,-2209.5008759,0.00016175,2]
[327620461,1716255033347,-9400.5542733,0.00016176,2]
[327620463,1716255033356,-430.65146703,0.00016176,2]
[327620465,1716255033365,-2387.045521,0.00016177,2]
[327620468,1716255033375,-155.03970033,0.00016276,2]
[327620471,1716255033384,-154.99523271,0.00016276,2]
[327620473,1716255033393,-155.01758303,0.00016277,2]
[327620475,1716255033402,-155.03825942,0.00016277,2]
[327620478,1716255033412,-445.3771369,0.00016277,2]
[327620481,1716255033421,-155.01763095,0.00016277,2]
[327620483,1716255033430,-580.14584496,0.00016279,2]
[327620486,1716255033442,-181.25970541,0.00016279,2]
[327620489,1716255033451,-230.85037262,0.00016583,2]
[327620491,1716255033460,-236.56094657,0.00016588,2]
[327620494,1716255033469,-1314.96757837,0.00016692,2]
[327620497,1716255033478,-151.66194473,0.00016703,2]
[327620499,1716255033487,-10452.44305365,0.00017898,2]
[327620502,1716255033496,-8357.85575392,0.00018,7]
[327620505,1716255033506,-5026.72752134,0.00018794,2]
[327621018,1716255040819,-12114.70915295,0.00016173,2]
[327621020,1716255040831,-389.9598276,0.00016173,2]
[327621022,1716255040842,-717.07148073,0.00016173,2]
[327621024,1716255040854,-5258.94605744,0.00016173,2]
[327621158,1716255042844,-17142.04130003,0.00016173,2]
[327621160,1716255042854,-1217.9012017,0.00016179,2]
[327621162,1716255042864,-155.00274413,0.00018793,2]
[327621164,1716255042873,-38474.75048056,0.00018794,2]
[327621166,1716255042884,-374.4204,0.00019,2]
[327621168,1716255042893,-339.13620373,0.00019178,2]
[327621170,1716255042902,-168.148609,0.00019178,2]
[327621172,1716255042911,-151.6619447,0.00019855,2]
[327621174,1716255042920,-438.57366408,0.0002,2]
[327621176,1716255042932,-6975.13997522,0.0002,2]
[327621178,1716255042944,-678.90216326,0.0002,2]
[327621180,1716255042954,-417.22450303,0.00020694,2]
[327621182,1716255042963,-4223.25780806,0.00020699,2]
[327621184,1716255042972,-3989.34276028,0.00020905,2]
[327621373,1716255044667,-702.96761467,0.00020905,2]
[327621376,1716255044677,-1160.39461689,0.00020905,2]
[327621380,1716255044687,-154.98450155,0.00020905,2]
[327621382,1716255044698,-186.83038505,0.00020905,2]
[327621384,1716255044707,-1450.80884896,0.00020906,2]
[327621386,1716255044717,-1494.00930761,0.00020907,2]
[327621388,1716255044727,-328.36363781,0.00020907,2]
[327621390,1716255044737,-155.61089521,0.00020909,2]
[327621393,1716255044747,-771.85111591,0.00020909,2]
[327621395,1716255044756,-764.47078192,0.00020909,2]
[327621397,1716255044766,-1496.40091695,0.00020909,2]
[327621399,1716255044775,-645.34094931,0.00020909,2]
[327621401,1716255044785,-281.12808338,0.00020911,2]
[327621403,1716255044794,-500.0,0.00020911,2]
[327621405,1716255044803,-183.33736188,0.00020911,2]
[327621407,1716255044812,-500.0,0.00020911,2]
[327621409,1716255044821,-255.80879839,0.00020911,2]
[327621411,1716255044830,-500.0,0.00020911,2]
[327621413,1716255044840,-500.0,0.00020911,2]
[327621415,1716255044849,-500.0,0.00020911,2]
[327621417,1716255044858,-500.0,0.00020911,2]
[327621419,1716255044867,-500.0,0.00020911,2]
[327621421,1716255044876,-500.0,0.00020911,2]
[327621423,1716255044885,-1786.35657289,0.00020912,2]
[327621425,1716255044895,-309.50390771,0.00020912,2]
[327621427,1716255044904,-684.75161522,0.00020912,2]
[327621429,1716255044913,-309.42741152,0.00020912,2]
[327621431,1716255044922,-412.9630023,0.00020912,2]
[327621433,1716255044932,-261.15058514,0.00020912,2]
[327621435,1716255044943,-521.13812777,0.00020912,2]
[327621437,1716255044953,-266.32916214,0.00020912,2]
[327621439,1716255044962,-1684.33877323,0.00020912,2]
[327621441,1716255044971,-10245.33880235,0.00020913,2]
[327621708,1716255047529,-1151.33496091,0.00016171,2]
[327621710,1716255047538,-3946.21554587,0.00016172,2]
[327621712,1716255047547,-4136.09081868,0.00020588,2]
[327621714,1716255047556,-408.63142854,0.00020749,2]
[327621716,1716255047565,-265.25584676,0.00020913,2]
[327621718,1716255047575,-538.9,0.00021073,3]
[327621720,1716255047583,-150.0,0.00021073,3]
[327621722,1716255047592,-166.666666,0.00021918,2]
[327621724,1716255047602,-159.70333977,0.00022,2]
[327621725,1716255047611,-166.666666,0.00022431,2]
[327621726,1716255047620,-166.666666,0.00022944,2]
[327621728,1716255047629,-151.6619447,0.00023007,2]
[327621730,1716255047639,-1217.9012017,0.00023139,2]
[327621732,1716255047647,-538.9,0.00023192,3]
[327621734,1716255047657,-150.0,0.00023192,3]
[327621736,1716255047666,-166.666666,0.00023456,2]
[327621738,1716255047676,-166.666666,0.00023969,2]
[327621740,1716255047685,-187.16152448,0.00024,2]
[327621742,1716255047695,-352.397255,0.00024384,2]
[327621744,1716255047704,-1170.66079637,0.0002441,2]
[327621746,1716255047713,-166.666666,0.00024482,2]
[327621748,1716255047723,-200.0,0.00024658,15]
[327621750,1716255047732,-986.45755068,0.0002484,2]
[327621752,1716255047741,-167.4232435,0.00025,2]
[327621753,1716255047762,-190.60630047,0.00025,2]
[327621754,1716255047772,-400.71262343,0.00025,2]
[327621755,1716255047782,-538.9,0.00025311,5]
[327621756,1716255047792,-150.0,0.00025311,5]
[327621757,1716255047801,-151.6619447,0.00026158,2]
[327621758,1716255047811,-2289.50442539,0.0002651,10]
[327621759,1716255047820,-154.98450155,0.0002651,2]
[327621760,1716255047829,-760.11966554,0.0002651,2]
[327621761,1716255047839,-154.98450155,0.0002651,2]
[327621762,1716255047849,-7682.93,0.00027387,3]
[327621763,1716255047858,-1136.59312053,0.0002739,2]
[327621764,1716255047868,-19961.26976859,0.00027397,3]
[327621765,1716255047877,-1000.0,0.00027397,2]
[327621766,1716255047886,-500.0,0.00027397,2]
[327621767,1716255047896,-351.83452739,0.00027397,2]
[327621768,1716255047905,-500.0,0.00027397,2]
[327621769,1716255047915,-500.0,0.00027397,2]
[327621790,1716255048099,-500.0,0.00027397,2]
[327621792,1716255048109,-500.0,0.00027397,2]
[327621794,1716255048118,-500.0,0.00027397,2]
[327621796,1716255048127,-500.0,0.00027397,2]
[327621798,1716255048137,-538.9,0.0002743,5]
[327621800,1716255048146,-150.0,0.0002743,5]
[327621802,1716255048155,-163.1341418,0.00028,7]
[327621804,1716255048165,-221.55802421,0.00028,2]
[327621806,1716255048174,-49484.31035221,0.00029,2]
[327621808,1716255048185,-151.6619447,0.0002931,2]
[327621810,1716255048195,-1170.66079637,0.0002941,2]
[327621812,1716255048205,-538.9,0.00029549,7]
[327621814,1716255048214,-150.0,0.00029549,7]
[327621816,1716255048223,-150.0,0.00029851,2]
[327621818,1716255048232,-278.81218284,0.0003,2]
[327621820,1716255048242,-285.45534619,0.0003,4]
[327621822,1716255048251,-450.4756046,0.0003,4]
[327621824,1716255048259,-154.9690062,0.0003,4]
[327621826,1716255048269,-154.9690062,0.0003,4]
[327621828,1716255048278,-464.09985769,0.0003,30]
[327621830,1716255048287,-256.0,0.0003,2]
[327621832,1716255048296,-1217.9012017,0.00030099,2]
[327621834,1716255048305,-352.397255,0.0003031,2]
[327621836,1716255048315,-538.9,0.00031668,7]
[327621838,1716255048324,-150.0,0.00031668,7]
[327621840,1716255048333,-320.29662839,0.00032,4]
[327621842,1716255048342,-150.0,0.00032851,2]
[327621844,1716255048352,-526.66959378,0.00033,2]
[327621846,1716255048361,-256.0,0.00033,2]
[327621848,1716255048370,-538.9,0.00033788,7]
[327621850,1716255048379,-150.0,0.00033788,7]
[327621851,1716255048390,-467.93476807,0.00034,4]
[327621854,1716255048399,-1170.66079637,0.0003441,2]
[327621856,1716255048410,-167.51927185,0.00034591,2]
[327621858,1716255048419,-256.0,0.00034714,2]
[327621860,1716255048428,-274.53832777,0.00034714,30]
[327621862,1716255048437,-337.43622534,0.00034714,120]
[327621864,1716255048448,-225.74637611,0.00034714,10]
[327621866,1716255048457,-486.0795711,0.00034714,120]
[327621868,1716255048466,-534.25165104,0.00034714,30]
[327621870,1716255048475,-704.90906288,0.00034714,30]
[327621872,1716255048485,-153.74593007,0.00034714,30]
[327621874,1716255048494,-724.73149123,0.00034714,30]
[327621876,1716255048503,-151.0,0.00034714,30]
[327621878,1716255048512,-2579.27099843,0.00034714,2]
[327621880,1716255048521,-1000.0,0.000348,30]
[327621881,1716255048530,-3272.90451497,0.00035,4]
[327621884,1716255048547,-1489.19673019,0.00035,4]
[327621886,1716255048557,-154.9690062,0.00035,4]
[327621888,1716255048567,-736.87370374,0.00035,14]
[327621890,1716255048576,-3000.0,0.00035,2]
[327621892,1716255048586,-957.86686219,0.00035,30]
[327622216,1716255694555,1151.33496091,9.999e-05,2]
[327622217,1716255737235,2179.95784837,0.0001,2]
[327622291,1716256232993,-1151.33496091,0.00017599,2]
[327622292,1716256233003,-1969.28586412,0.000176,2]
[327622294,1716256233013,-35622.72781875,0.00018191,2]
[327622296,1716256233022,-5171.38308348,0.00018192,2]
[327622299,1716256233035,-913.24602737,0.00018192,2]
[327622329,1716256238171,-954.64750194,0.00018192,2]
[327622447,1716256245063,-3883.60828544,0.00018192,2]
[327622450,1716256245075,-13977.11510177,0.00018192,2]
[327622452,1716256245085,-197.06660759,0.000189,2]
[327622454,1716256245094,-312.017,0.00019,2]
[327622456,1716256245104,-1045.23009173,0.00019387,2]
[327622458,1716256245113,-18939.45471013,0.0002,2]
[327622460,1716256245123,-7415.23889232,0.0002,2]
[327622463,1716256245132,-2409.27936662,0.00020783,2]
[327622465,1716256245142,-2000.0,0.00020813,2]
[327622467,1716256245151,-945.31049459,0.00020911,2]
[327622469,1716256245161,-1690.24843919,0.00020911,2]
[327622471,1716256245170,-918.09575998,0.00020912,2]
[327622472,1716256245180,-500.0,0.00020912,2]
[327622473,1716256245190,-500.0,0.00020912,2]
[327622474,1716256245199,-276.74263952,0.00020912,2]
[327622475,1716256245209,-8658.1623596,0.00020913,2]
[327622476,1716256245219,-41378.06674963,0.00020913,2]
[327622477,1716256245230,-269.0,0.00021493,3]
[327622478,1716256245239,-150.0,0.00021493,3]
[327622479,1716256245249,-166.666666,0.00021918,2]
[327622480,1716256245259,-294.08737331,0.00022,2]
[327622481,1716256245269,-166.666666,0.00022431,2]
[327622482,1716256245279,-166.666666,0.00022944,2]
[327622483,1716256245289,-166.666666,0.00023456,2]
[327622484,1716256245299,-269.0,0.00023574,3]
[327622485,1716256245310,-150.0,0.00023574,3]
[327622486,1716256245319,-197.06660759,0.000239,2]
[327622487,1716256245328,-166.666666,0.00023969,2]
[327622488,1716256245339,-187.1961905,0.00024,2]
[327622489,1716256245348,-317.157529,0.00024384,2]
[327622490,1716256245358,-166.666666,0.00024482,2]
[327622491,1716256245368,-168.05725617,0.00025,2]
[327622492,1716256245378,-297.4089139,0.00025,2]
[327622493,1716256245389,-7392.12775575,0.00025,2]
[327622494,1716256245398,-269.0,0.00025655,5]
[327622495,1716256245409,-150.0,0.00025655,5]
[327622497,1716256245419,-286.48768571,0.0002625,2]
[327622499,1716256245429,-380.24087666,0.000266,2]
[327622501,1716256245438,-1136.74590385,0.0002739,2]
[327622503,1716256245447,-500.0,0.00027397,2]
[327622504,1716256245457,-500.0,0.00027397,2]
[327622506,1716256245467,-155.55035822,0.00027397,2]
[327622509,1716256245478,-1000.0,0.00027397,2]
[327622511,1716256245487,-1000.0,0.00027397,2]
[327622513,1716256245496,-1000.0,0.00027397,2]
[327622515,1716256245508,-1000.0,0.00027397,2]
[327622517,1716256245518,-6790.65,0.0002749,3]
[327622518,1716256245528,-1000.0,0.00027499,2]
[327622521,1716256245538,-28965.61758019,0.000275,2]
[327622523,1716256245548,-269.0,0.00027736,5]
[327622525,1716256245558,-221.60537528,0.00028,2]
[327622527,1716256245568,-197.06660759,0.000289,2]
[327622529,1716256245577,-414.88000791,0.00029,2]
[327622531,1716256245590,-269.0,0.00029817,7]
[327622532,1716256245601,-464.20978224,0.0003,30]
[327622534,1716256245610,-886.58083051,0.0003,4]
[327622536,1716256245620,-1556.2719326,0.0003,5]
[327622538,1716256245630,-257.0,0.0003,2]
[327622540,1716256245639,-317.157529,0.0003031,2]
[327622542,1716256245648,-498.038,0.00030611,2]
[327622545,1716256245658,-150.807,0.00030611,2]
[327622547,1716256245668,-150.184,0.00030611,2]
[327622549,1716256245677,-227.469,0.00030611,2]
[327622550,1716256245686,-150.0,0.00031,6]
[327622553,1716256245696,-269.0,0.00031898,7]
[327622554,1716256245706,-1325.62723775,0.00032795,4]
[327622556,1716256245715,-458.04365832,0.00032987,14]
[327622558,1716256245726,-594.0,0.00033,2]
[327622560,1716256245736,-257.0,0.00033,2]
[327622563,1716256245745,-499.8851,0.00033058,30]
[327622565,1716256245754,-594.0,0.00033151,2]
[327622566,1716256245763,-496.0,0.00033611,2]
[327622568,1716256245773,-269.0,0.00033978,7]
[327622571,1716256245783,-594.0,0.00034521,2]
[327622572,1716256245793,-1000.0,0.00034569,2]
[327622575,1716256245803,-43664.51578106,0.0003457,2]
[327622576,1716256245812,-151.365591,0.0003457,2]
[327622579,1716256245824,-151.0,0.0003457,2]
[327622581,1716256245834,-151.0,0.0003457,2]
[327622583,1716256245843,-382.400406,0.0003457,2]
[327622587,1716256245853,-151.0,0.0003457,2]
[327622591,1716256245862,-151.0,0.0003457,2]
[327622593,1716256245871,-382.400406,0.0003457,2]
[327622595,1716256245880,-151.928547,0.0003457,2]
[327622596,1716256245889,-197.795136,0.0003457,2]
[327622598,1716256245899,-585.302319,0.0003457,2]
[327622600,1716256245908,-585.302319,0.0003457,2]
[327622603,1716256245918,-151.0,0.0003457,2]
[327622604,1716256245928,-151.0,0.0003457,2]
[327622606,1716256245937,-151.0,0.0003457,2]
[327622608,1716256245947,-152.196052,0.0003457,2]
[327622610,1716256245956,-151.0,0.0003457,2]
[327622612,1716256245966,-151.0,0.0003457,2]
[327622615,1716256245977,-151.0,0.0003457,2]
[327622616,1716256245986,-151.0,0.0003457,2]
[327622618,1716256245996,-151.0,0.0003457,2]
[327622621,1716256246006,-195.017572,0.0003457,2]
[327622623,1716256246015,-195.017572,0.0003457,2]
[327622625,1716256246024,-151.0,0.0003457,2]
[327622627,1716256246034,-218.500211,0.0003457,2]
[327622629,1716256246043,-160.259522,0.0003457,2]
[327622636,1716256246194,-160.259522,0.0003457,2]
[327622637,1716256246204,-201.656752,0.0003457,2]
[327622638,1716256246214,-201.656752,0.0003457,2]
[327622639,1716256246223,-961.186848,0.0003457,2]
[327622640,1716256246233,-961.186848,0.0003457,2]
[327622641,1716256246243,-948.960399,0.0003457,2]
[327622642,1716256246252,-948.960399,0.0003457,2]
[327622643,1716256246262,-151.0,0.0003457,2]
[327622644,1716256246271,-151.0,0.0003457,2]
[327622645,1716256246280,-947.59707,0.0003457,2]
[327622646,1716256246290,-947.59707,0.0003457,2]
[327622648,1716256246299,-903.307548,0.0003457,2]
[327622649,1716256246308,-903.307548,0.0003457,2]
[327622651,1716256246317,-151.0,0.0003457,2]
[327622652,1716256246327,-151.0,0.0003457,2]
[327622653,1716256246336,-194.918389,0.0003457,2]
[327622654,1716256246345,-194.918389,0.0003457,2]
[327622655,1716256246354,-151.0,0.0003457,2]
[327622656,1716256246364,-258.006878,0.0003457,2]
[327622657,1716256246373,-151.0,0.0003457,2]
[327622658,1716256246383,-151.0,0.0003457,2]
[327622659,1716256246392,-151.0,0.0003457,2]
[327622660,1716256246402,-151.0,0.0003457,2]
[327622661,1716256246411,-417.32360569,0.00034577,2]
[327622662,1716256246420,-2948.26017733,0.00034649,3]
[327622663,1716256246429,-4224.07535635,0.00034688,2]
[327622664,1716256246438,-1000.0,0.00034698,2]
[327622665,1716256246448,-150.0,0.00034698,120]
[327622666,1716256246457,-1582.63183758,0.00034698,120]
[327622667,1716256246466,-5809.32126931,0.00034698,30]
[327622668,1716256246476,-1000.0,0.000348,10]
[327622669,1716256246485,-1000.0,0.000348,20]
[327622670,1716256246494,-5319.09550315,0.00035,3]
[327622671,1716256246504,-9980.6348843,0.00035,3]
[327622672,1716256246514,-10376.72674869,0.00035,30]
[327622673,1716256246527,-3000.0,0.00035,2]
[327622674,1716256246537,-494.18904574,0.00035,4]
[327622675,1716256246547,-192.3538783,0.00035,4]
[327622676,1716256246556,-2019.28866989,0.00035,10]
[327622677,1716256246566,-236.06633813,0.00035,4]
[327622678,1716256246575,-154.98450155,0.00035,4]
[327622679,1716256246585,-151.0,0.00035,2]
[327622680,1716256246595,-195.017572,0.00035,2]
[327622681,1716256246606,-195.017572,0.00035,2]
[327622682,1716256246615,-151.0,0.00035,2]
[327622683,1716256246624,-160.259522,0.00035,2]
[327622684,1716256246634,-160.259522,0.00035,2]
[327622685,1716256246644,-201.656752,0.00035,2]
[327622686,1716256246653,-201.656752,0.00035,2]
[327622687,1716256246663,-961.186848,0.00035,2]
[327622688,1716256246672,-961.186848,0.00035,2]
[327622689,1716256246682,-948.960399,0.00035,2]
[327622690,1716256246692,-948.960399,0.00035,2]
[327622691,1716256246702,-151.0,0.00035,2]
[327622692,1716256246711,-151.0,0.00035,2]
[327622693,1716256246721,-947.59707,0.00035,2]
[327622694,1716256246732,-947.59707,0.00035,2]
[327622695,1716256246742,-903.307548,0.00035,2]
[327622696,1716256246751,-903.307548,0.00035,2]
[327622697,1716256246760,-151.0,0.00035,2]
[327622698,1716256246770,-151.0,0.00035,2]
[327622699,1716256246779,-194.918389,0.00035,2]
[327622700,1716256246788,-194.918389,0.00035,2]
[327622701,1716256246797,-151.0,0.00035,2]
[327622702,1716256246807,-151.474231,0.00035,2]
[327622703,1716256246816,-151.0,0.00035,2]
[327622704,1716256246826,-151.0,0.00035,2]
[327622705,1716256246835,-151.0,0.00035,2]
[327622706,1716256246844,-1000.0,0.00035315,2]
[327622707,1716256246853,-151.0,0.00035316,2]
[327622708,1716256246862,-151.0,0.00035316,2]
[327622709,1716256246872,-151.0,0.00035316,2]
[327622710,1716256246881,-151.0,0.00035316,2]
[327622711,1716256246891,-182.12533,0.00035316,2]
[327622712,1716256246900,-151.0,0.00035316,2]
[327622713,1716256246909,-151.0,0.00035316,2]
[327622714,1716256246918,-151.0,0.00035316,2]
[327622715,1716256246927,-158.904632,0.00035316,2]
[327622716,1716256246936,-151.568143,0.00035316,2]
[327622717,1716256246946,-195.017572,0.00035316,2]
[327622718,1716256246956,-195.017572,0.00035316,2]
[327622719,1716256246965,-151.0,0.00035316,2]
[327622720,1716256246977,-160.259522,0.00035316,2]
[327622721,1716256246986,-160.259522,0.00035316,2]
[327622722,1716256246995,-201.656752,0.00035316,2]
[327622723,1716256247004,-201.656752,0.00035316,2]
[327622724,1716256247013,-961.186848,0.00035316,2]
[327622725,1716256247023,-961.186848,0.00035316,2]
[327622726,1716256247032,-948.960399,0.00035316,2]
[327622727,1716256247041,-948.960399,0.00035316,2]
[327622728,1716256247050,-151.0,0.00035316,2]
[327622729,1716256247059,-151.0,0.00035316,2]
[327622730,1716256247068,-947.59707,0.00035316,2]
[327622731,1716256247077,-947.59707,0.00035316,2]
[327622732,1716256247087,-903.307548,0.00035316,2]
[327622733,1716256247095,-903.307548,0.00035316,2]
[327622734,1716256247104,-151.0,0.00035316,2]
[327622735,1716256247113,-151.0,0.00035316,2]
[327622736,1716256247122,-194.918389,0.00035316,2]
[327622737,1716256247132,-194.918389,0.00035316,2]
[327622738,1716256247141,-151.0,0.00035316,2]
[327622739,1716256247150,-151.0,0.00035316,2]
[327622740,1716256247159,-151.0,0.00035316,2]
[327622741,1716256247168,-151.0,0.00035316,2]
[327622742,1716256247177,-151.0,0.00035316,2]
[327622743,1716256247186,-1000.0,0.00035316,2]
[327622744,1716256247196,-1000.0,0.00035316,2]
[327622745,1716256247205,-88888.0,0.00035316,5]
[327622746,1716256247215,-151.0,0.00035416,2]
[327622747,1716256247224,-151.0,0.00035416,2]
[327622748,1716256247234,-151.0,0.00035416,2]
[327622749,1716256247243,-151.0,0.00035416,2]
[327622750,1716256247253,-151.0,0.00035416,2]
[327622751,1716256247262,-382.400406,0.00035416,2]
[327622752,1716256247271,-382.400406,0.00035416,2]
[327622753,1716256247281,-151.0,0.00035416,2]
[327622754,1716256247291,-151.0,0.00035416,2]
[327622755,1716256247301,-151.0,0.00035416,2]
[327622756,1716256247310,-151.0,0.00035416,2]
[327622757,1716256247320,-382.400406,0.00035416,2]
[327622758,1716256247329,-382.400406,0.00035416,2]
[327622759,1716256247339,-585.302319,0.00035416,2]
[327622760,1716256247348,-585.302319,0.00035416,2]
[327622761,1716256247357,-585.302319,0.00035416,2]
[327622762,1716256247367,-585.302319,0.00035416,2]
[327622763,1716256247376,-151.0,0.00035616,2]
[327622764,1716256247385,-151.0,0.00035616,2]
[327622765,1716256247395,-151.0,0.00035616,2]
[327622766,1716256247404,-151.0,0.00035616,2]
[327622767,1716256247414,-151.706942,0.00035616,2]
[327622768,1716256247424,-1000.0,0.00035616,2]
[327622769,1716256247434,-295.085196,0.00035616,120]
[327622770,1716256247443,-9778.54,0.00035616,3]
[327622771,1716256247453,-8148.78,0.00035616,3]
[327622772,1716256247463,-160.259522,0.00035993,2]
[327622773,1716256247472,-160.259522,0.00035993,2]
[327622774,1716256247483,-196.70853573,0.00036,14]
[327622775,1716256247494,-257.0,0.00036,2]
[327622776,1716256247504,-269.52963995,0.00036,2]
[327622777,1716256247516,-269.0,0.00036059,15]
[327622778,1716256247526,-317.157529,0.00036236,2]
[327622779,1716256247535,-600.0,0.00036247,2]
[327622780,1716256247545,-201.656752,0.00036247,2]
[327622781,1716256247555,-201.656752,0.00036247,2]
[327622782,1716256247565,-961.186848,0.00036247,2]
[327622783,1716256247574,-961.186848,0.00036247,2]
[327622784,1716256247584,-948.960399,0.00036247,2]
[327622785,1716256247594,-948.960399,0.00036247,2]
[327622786,1716256247604,-151.0,0.00036247,2]
[327622787,1716256247613,-151.0,0.00036611,2]
[327622788,1716256247622,-151.0,0.00036611,2]
[327622789,1716256247632,-496.0,0.00036611,2]
[327622790,1716256247641,-5130.4581295,0.00036688,2]
[327622791,1716256247650,-151.0,0.00036698,2]
[327622792,1716256247660,-151.0,0.00036698,2]
[327622793,1716256247669,-382.400406,0.00036698,2]
[327622794,1716256247678,-151.0,0.00036698,2]
[327622795,1716256247687,-263.976501,0.00036698,2]
[327622796,1716256247697,-382.400406,0.00036698,2]
[327622797,1716256247707,-585.302319,0.00036698,2]
[327622798,1716256247716,-585.302319,0.00036698,2]
[327622799,1716256247727,-283.615286,0.00036698,2]
[327622800,1716256247736,-151.0,0.00036698,2]
[327622801,1716256247746,-160.434255,0.00036698,2]
[327622802,1716256247755,-151.0,0.00036698,2]
[327622803,1716256247765,-195.017572,0.00036698,2]
[327622804,1716256247774,-195.017572,0.00036698,2]
[327622805,1716256247783,-151.0,0.00036698,2]
[327622806,1716256247792,-160.259522,0.00036698,2]
[327622807,1716256247802,-160.259522,0.00036698,2]
[327622808,1716256247811,-201.656752,0.00036698,2]
[327622809,1716256247820,-201.656752,0.00036698,2]
[327622810,1716256247830,-961.186848,0.00036698,2]
[327622811,1716256247839,-961.186848,0.00036698,2]
[327622812,1716256247848,-948.960399,0.00036698,2]
[327622813,1716256247858,-948.960399,0.00036698,2]
[327622814,1716256247867,-151.0,0.00036698,2]
[327622815,1716256247876,-151.0,0.00036698,2]
[327622816,1716256247886,-947.59707,0.00036698,2]
[327622817,1716256247895,-947.59707,0.00036698,2]
[327622818,1716256247905,-903.307548,0.00036698,2]
[327622819,1716256247914,-903.307548,0.00036698,2]
[327622820,1716256247924,-151.0,0.00036698,2]
[327622821,1716256247933,-151.0,0.00036698,2]